bitfinex-derivatives/quotes_SOLF0:USTF0_20241103
["timestamp","ask_amount","ask_price","bid_price","bid_amount"]
[1730663295116,3.1108,160.79,160.74,1.3539]
[1730663295330,15.23833912,160.81,160.73,1.4177]
[1730663295627,3.1107,160.79,160.74,3.1115]
[1730663295826,15.23833912,160.81,160.7,11.93833912]
[1730663296129,15.23833912,160.81,160.73,3.1118]
[1730663296423,3.1109,160.79,160.7,11.93833912]
[1730663296812,3.111,160.78,160.74,3.1115]
[1730663297025,3.111,160.78,160.7,11.93833912]
[1730663297209,15.23833912,160.81,160.69,1.3078]
[1730663297411,3.1114,160.76,160.72,3.1119]
[1730663297615,6.4114,160.76,160.72,3.1119]
[1730663298224,6.4114,160.76,160.73,3.1118]
[1730663298717,11.93833912,160.79,160.69,1.3078]
[1730663298920,11.93833912,160.82,160.7,11.93833912]
[1730663299127,3.3,160.81,160.7,11.93833912]
[1730663299316,3.3,160.8,160.72,11.93833912]
[1730663300327,6.4105,160.8,160.77,3.1109]
[1730663301123,3.3,160.8,160.77,3.1109]
[1730663301631,3.1107,160.79,160.75,3.1113]
[1730663304128,3.111,160.78,160.75,3.1113]
[1730663304441,11.93833912,160.79,160.72,3.112]
[1730663305019,3.1111,160.77,160.72,3.112]
[1730663305217,11.93833912,160.79,160.72,3.112]
[1730663305424,11.93833912,160.79,160.73,3.1118]
[1730663305831,3.1112,160.77,160.73,3.1118]
[1730663306220,11.93833912,160.77,160.68,1.3581]
[1730663306622,13.23143912,160.77,160.68,1.3581]
[1730663306837,3.1117,160.74,160.7,3.1123]
[1730663307034,3.3,160.73,160.68,1.3581]
[1730663307533,3.3,160.73,160.7,3.1123]
[1730663310737,6.412,160.73,160.7,3.1123]
[1730663311535,3.1121,160.72,160.69,3.1126]
[1730663312236,6.412,160.73,160.64,1.3373]
[1730663312822,3.1121,160.72,160.64,1.3373]
[1730663313040,3.1121,160.72,160.69,3.1124]
[1730663313341,3.1121,160.72,160.64,1.3373]
[1730663313545,3.3,160.73,160.64,1.3373]
[1730663313744,11.93833912,160.74,160.65,11.93833912]
[1730663313745,3.3,160.74,160.65,11.93833912]
[1730663314430,6.4117,160.74,160.71,3.1121]
[1730663315035,6.4117,160.74,160.72,3.112]
[1730663315230,3.1117,160.74,160.72,3.112]
[1730663315433,3.3,160.75,160.65,11.93833912]
[1730663316445,3.3,160.75,160.73,3.1117]
[1730663316741,3.1118,160.74,160.65,11.93833912]
[1730663317931,3.1118,160.74,160.67,3.1129]
[1730663318133,15.23833912,160.75,160.64,1.3373]
[1730663318742,6.4115,160.75,160.65,11.93833912]
[1730663319038,11.93833912,160.8,160.69,11.93833912]
[1730663319235,3.3,160.8,160.7,3.998]
[1730663319430,6.4105,160.8,160.7,3.998]
[1730663319632,6.4105,160.8,160.77,3.111]
[1730663320635,3.3,160.8,160.7,3.998]
[1730663320836,6.4102,160.82,160.71,11.93833912]
[1730663321236,6.4102,160.82,160.78,3.1107]
[1730663323441,3.1105,160.8,160.76,3.1111]
[1730663327449,6.4105,160.8,160.76,3.1111]
[1730663330053,6.4105,160.8,160.77,3.111]
[1730663332549,3.3,160.8,160.78,3.1108]
[1730663334558,10.75545523,160.82,160.78,3.1107]
[1730663334755,14.05545523,160.82,160.78,3.1107]
[1730663337449,10.75545523,160.82,160.78,3.1107]
[1730663337650,3.3,160.81,160.78,3.1107]
[1730663338449,3.1103,160.81,160.78,3.1107]
[1730663338847,7.64525523,160.85,160.79,7.64525523]
[1730663339053,10.94525523,160.85,160.79,7.64525523]
[1730663339447,10.94525523,160.85,160.81,3.1102]
[1730663339647,14.05495523,160.85,160.81,3.1102]
[1730663340244,10.94525523,160.85,160.81,3.1102]
[1730663340450,7.64525523,160.82,160.76,9.01955523]
[1730663340845,3.1104,160.81,160.77,3.111]
[1730663341057,7.64525523,160.82,160.76,9.01955523]
[1730663341261,7.64525523,160.82,160.76,1.3743]
[1730663341762,3.1106,160.8,160.77,3.1111]
[1730663341962,6.4106,160.8,160.77,3.1111]
[1730663344863,3.1109,160.78,160.75,55.39024657]
[1730663345060,3.3,160.8,160.75,55.39024657]
[1730663345282,7.64525523,160.77,160.71,7.64525523]
[1730663345466,7.64525523,160.77,160.71,1.55609361]
[1730663345658,7.64525523,160.76,160.7,8.98055523]
[1730663346164,3.1117,160.74,160.71,3.1121]
[1730663346754,3.1119,160.73,160.7,7.64525523]
[1730663346958,3.1119,160.73,160.69,3.1124]
[1730663347457,3.1119,160.73,160.7,3.1124]
[1730663350062,3.3,160.75,160.72,3.1119]
[1730663350258,3.3,160.75,160.69,7.64525523]
[1730663350259,3.3,160.75,160.71,7.64525523]
[1730663350655,3.3,160.75,160.72,3.112]
[1730663356169,3.3,160.75,160.7,7.64525523]
[1730663356170,10.94525523,160.75,160.7,7.64525523]
[1730663356674,3.1119,160.73,160.69,5.8442]
[1730663356871,3.1119,160.73,160.69,2.7317]
[1730663357071,10.94525523,160.75,160.69,2.7317]
[1730663357266,10.94525523,160.75,160.69,10.37695523]
[1730663357471,3.1117,160.74,160.7,3.1123]
[1730663358163,10.94525523,160.75,160.69,1.3293]
[1730663358373,3.1122,160.72,160.68,10.75795523]
[1730663358770,3.1122,160.72,160.68,7.64525523]
[1730663360283,3.1122,160.72,160.69,3.1126]
[1730663362176,3.1124,160.71,160.68,10.75795523]
[1730663362378,3.1124,160.71,160.68,3.1127]
[1730663362576,7.64525523,160.74,160.68,7.64525523]
[1730663362781,3.3,160.75,160.68,7.64525523]
[1730663362782,10.94525523,160.75,160.68,7.64525523]
[1730663363479,3.112,160.73,160.7,3.1124]
[1730663363981,7.64525523,160.77,160.71,7.64525523]
[1730663364175,3.28,160.75,160.71,7.64525523]
[1730663364783,3.28,160.75,160.73,3.1117]
[1730663365281,3.28,160.75,160.72,3.112]
[1730663366177,10.92525523,160.75,160.7,1.55632132]
[1730663366386,7.64525523,160.73,160.67,7.64525523]
[1730663366576,7.64525523,160.73,160.68,1.55641406]
[1730663366776,10.75725523,160.73,160.69,4.66901406]
[1730663367083,10.75725523,160.73,160.69,3.1126]
[1730663367682,3.1122,160.72,160.68,3.1127]
[1730663367879,10.75745523,160.72,160.68,3.1127]
[1730663368368,3.1122,160.72,160.67,3.1129]
[1730663368682,3.1122,160.72,160.66,7.64525523]
[1730663368882,3.1122,160.72,160.68,3.1126]
[1730663369185,3.1122,160.72,160.66,7.64525523]
[1730663369374,3.1122,160.72,160.67,1.55653943]
[1730663369674,3.1123,160.71,160.68,3.1127]
[1730663370576,3.28,160.75,160.69,7.64525523]
[1730663370577,7.64525523,160.75,160.69,7.64525523]
[1730663370880,3.3,160.76,160.72,7.64525523]
[1730663371282,3.3,160.76,160.74,3.1116]
[1730663371784,3.28,160.78,160.73,7.64525523]
[1730663373284,3.28,160.78,160.69,1.3865]
[1730663373285,10.92525523,160.78,160.75,3.1114]
[1730663376470,3.28,160.78,160.75,3.1114]
[1730663377385,6.3909,160.78,160.75,3.1114]
[1730663378181,3.1109,160.78,160.75,3.1114]
[1730663385523,6.3909,160.79,160.75,3.1114]
[1730663386413,6.3909,160.79,160.76,3.1113]
[1730663386921,3.28,160.79,160.76,3.1113]
[1730663387120,3.28,160.79,160.77,3.1109]
[1730663387514,7.64525523,160.85,160.78,7.64525523]
[1730663387721,3.28,160.84,160.8,7.64525523]
[1730663388023,14.03445523,160.87,160.81,7.64525523]
[1730663388296,3.28,160.87,160.81,7.64525523]
[1730663388528,94.42692798,160.92,160.86,7.64525523]
[1730663388729,3.28,160.89,160.86,7.64525523]
[1730663389233,3.28,160.89,160.86,10.75445523]
[1730663389859,6.3888,160.89,160.86,7.64525523]
[1730663390123,6.3888,160.89,160.85,3.1095]
[1730663390124,10.92525523,160.89,160.83,7.64525523]
[1730663390538,10.92525523,160.89,160.82,3.1101]
[1730663390539,7.64525523,160.86,160.82,3.1101]
[1730663391431,10.75465523,160.86,160.82,3.1101]
[1730663393320,3.1094,160.86,160.82,3.1101]
[1730663394034,15.23247935,160.89,160.79,52.26876288]
[1730663394237,3.1098,160.84,160.8,3.1105]
[1730663394420,6.3898,160.84,160.8,3.1105]
[1730663394822,3.1102,160.82,160.79,52.26876288]
[1730663396928,15.23247935,160.84,160.76,1.3017]
[1730663397639,3.1103,160.81,160.78,3.1109]
[1730663399133,3.1105,160.8,160.76,3.1112]
[1730663399737,3.1112,160.77,160.74,1.55587326]
[1730663399935,3.28,160.79,160.71,1.55587326]
[1730663400131,3.28,160.79,160.72,1.55587326]
[1730663400337,3.28,160.79,160.71,1.55587326]
[1730663400530,3.28,160.79,160.7,13.32537935]
[1730663400834,6.3908,160.79,160.75,3.1114]
[1730663401137,3.28,160.79,160.71,1.55615042]
[1730663401326,3.28,160.79,160.77,3.111]
[1730663401532,3.28,160.79,160.71,1.55615453]
[1730663401728,3.28,160.79,160.7,13.32537935]
[1730663401929,3.28,160.79,160.71,1.55615453]
[1730663402127,3.28,160.79,160.72,1.55615453]
[1730663402332,3.28,160.79,160.76,3.1112]
[1730663404038,3.28,160.79,160.74,3.1115]
[1730663404909,3.1109,160.78,160.74,3.1115]
[1730663405612,3.28,160.79,160.72,13.50861042]
[1730663405813,3.28,160.79,160.72,11.95247935]
[1730663406207,3.28,160.79,160.76,3.1111]
[1730663406603,3.28,160.79,160.73,1.55601312]
[1730663406806,6.3902,160.82,160.78,3.1107]
[1730663407201,6.3902,160.82,160.75,11.95247935]
[1730663408210,6.3902,160.82,160.77,3.1111]
[1730663408404,6.3902,160.82,160.75,11.95247935]
[1730663409208,6.3902,160.82,160.78,3.1107]
[1730663410217,3.1107,160.79,160.76,3.1112]
[1730663410402,3.1107,160.79,160.73,15.23247935]
[1730663410605,3.1107,160.79,160.73,3.28]
[1730663410801,3.1107,160.79,160.75,3.1113]
[1730663411005,3.1105,160.8,160.73,11.95247935]
[1730663411211,3.1105,160.8,160.73,13.50849926]
[1730663411407,3.1105,160.8,160.76,3.1111]
[1730663412003,3.1105,160.8,160.77,3.111]
[1730663412208,3.28,160.82,160.73,11.95247935]
[1730663412614,6.3902,160.82,160.78,3.1108]
[1730663417018,7.64474626,160.8,160.73,9.20071712]
[1730663417214,7.64474626,160.78,160.71,9.20076083]
[1730663417415,7.64474626,160.78,160.71,7.64474626]
[1730663418122,10.75574626,160.78,160.74,3.1115]
[1730663418716,10.75574626,160.78,160.71,7.64474626]
[1730663418717,3.1115,160.76,160.71,10.75684626]
[1730663418919,10.75624626,160.76,160.71,4.66826369]
[1730663419121,7.64474626,160.76,160.7,7.64474626]
[1730663419315,3.1117,160.74,160.7,10.75714626]
[1730663420312,10.92474626,160.75,160.7,3.1124]
[1730663420634,3.1119,160.73,160.69,3.1126]
[1730663420921,3.1119,160.73,160.7,1.55620942]
[1730663421129,3.1119,160.73,160.69,3.1126]
[1730663421317,3.1119,160.73,160.7,1.55620942]
[1730663421520,3.1119,160.73,160.69,3.1126]
[1730663421721,3.1119,160.73,160.7,1.55620942]
[1730663421916,3.1119,160.73,160.69,3.1126]
[1730663422116,3.1119,160.73,160.7,1.55620942]
[1730663422431,3.1119,160.73,160.69,3.1126]
[1730663422737,6.3916,160.75,160.71,3.1122]
[1730663427734,3.28,160.75,160.73,3.1118]
[1730663428626,10.92474626,160.78,160.73,3.1118]
[1730663429116,3.1112,160.77,160.73,3.1118]
[1730663429437,10.75594626,160.77,160.73,3.1118]
[1730663431728,3.1116,160.75,160.71,3.1122]
[1730663431929,3.1116,160.75,160.69,7.64474626]
[1730663432132,3.1116,160.75,160.7,1.5561927]
[1730663432328,3.1116,160.75,160.69,7.64474626]
[1730663432526,3.1116,160.75,160.7,1.5561927]
[1730663432721,3.1116,160.75,160.7,7.64474626]
[1730663433325,3.1116,160.75,160.71,3.1121]
[1730663433840,3.1116,160.75,160.7,7.64474626]
[1730663434029,3.1112,160.77,160.72,7.64474626]
[1730663435352,3.1112,160.77,160.74,3.1115]
[1730663435921,3.28,160.78,160.76,3.1112]
[1730663436529,10.75534626,160.8,160.76,3.1112]
[1730663436733,3.28,160.79,160.76,3.1112]
[1730663438331,3.1102,160.82,160.78,3.1109]
[1730663438541,3.28,160.81,160.78,3.1109]
[1730663439227,3.28,160.81,160.77,7.64474626]
[1730663439228,6.3904,160.81,160.77,10.75584626]
[1730663441537,3.1101,160.83,160.8,3.1105]
[1730663441735,3.28,160.83,160.8,3.1105]
[1730663442436,6.3899,160.84,160.8,3.1105]
[1730663443728,10.75474626,160.83,160.79,3.1106]
[1730663448940,3.1096,160.85,160.81,3.1102]
[1730663449132,3.28,160.84,160.81,3.1102]
[1730663449643,3.28,160.84,160.79,7.64474626]
[1730663449829,6.3898,160.84,160.8,3.1104]
[1730663453540,7.64474626,160.81,160.76,9.03414626]
[1730663453943,7.64474626,160.83,160.76,9.03414626]
[1730663454337,7.64474626,160.83,160.78,3.1108]
[1730663455247,3.1104,160.81,160.78,3.1108]
[1730663459447,6.3901,160.83,160.79,7.64474626]
[1730663459647,3.28,160.83,160.79,7.64474626]
[1730663460752,3.28,160.83,160.8,3.1104]
[1730663462252,10.92474626,160.83,160.77,7.64474626]
[1730663462451,10.92474626,160.83,160.78,1.55563636]
[1730663462657,10.92474626,160.83,160.77,7.64474626]
[1730663463054,10.92474626,160.83,160.73,1.2892]
[1730663463055,10.92474626,160.83,160.76,7.64474626]
[1730663463257,3.1104,160.81,160.77,4.66665839]
[1730663463452,3.1104,160.81,160.77,3.111]
[1730663466153,3.1106,160.8,160.77,3.111]
[1730663466748,10.92474626,160.83,160.76,7.64474626]
[1730663466948,3.1106,160.8,160.77,3.1111]
[1730663467253,7.64474626,160.81,160.76,7.64474626]
[1730663467862,7.64474626,160.8,160.75,3.1114]
[1730663468163,7.64474626,160.78,160.73,7.64474626]
[1730663468357,3.1113,160.76,160.72,3.1119]
[1730663468663,3.1113,160.76,160.73,1.55607847]
[1730663468855,3.1113,160.76,160.72,3.1119]
[1730663469051,3.1113,160.76,160.73,1.55609143]
[1730663469365,3.1113,160.76,160.72,3.1119]
[1730663469568,3.1113,160.76,160.73,4.66790715]
[1730663469861,3.1113,160.76,160.73,3.1118]
[1730663470462,3.1111,160.77,160.73,10.75654626]
[1730663471656,3.28,160.8,160.77,3.1111]
[1730663472063,3.28,160.8,160.76,7.64474626]
[1730663472559,6.3905,160.8,160.76,10.75594626]
[1730663473759,3.1101,160.83,160.79,7.64474626]
[1730663474064,3.28,160.82,160.79,7.64474626]
[1730663474755,6.3901,160.82,160.79,7.64474626]
[1730663475563,3.1103,160.81,160.78,3.1107]
[1730663476264,3.28,160.82,160.78,3.1107]
[1730663476462,6.3902,160.82,160.78,3.1107]
[1730663485766,6.3696,160.85,160.81,10.75494626]
[1730663485971,7.64474626,160.88,160.81,7.64474626]
[1730663486172,3.26,160.88,160.84,7.64474626]
[1730663486374,3.26,160.89,160.85,7.64474626]
[1730663486673,41.99867175,160.92,160.87,7.64474626]
[1730663486859,41.99867175,160.92,160.9,7.64474626]
[1730663487673,7.64474626,160.93,160.87,7.64474626]
[1730663488663,3.1083,160.92,160.87,10.75374626]
[1730663489979,3.1083,160.92,160.88,3.1089]
[1730663496581,3.1083,160.92,160.88,10.75364626]
[1730663499584,3.26,160.96,160.91,7.64474626]
[1730663499989,3.26,160.96,160.86,52.24947846]
[1730663499990,3.26,160.96,160.93,7.64474626]
[1730663504686,3.1073,160.97,160.93,7.64474626]
[1730663507081,3.1071,160.98,160.94,7.64474626]
[1730663507390,3.26,160.99,160.94,7.64474626]
[1730663507691,3.1069,160.99,160.95,3.1075]
[1730663508087,3.1066,161.01,160.97,3.1071]
[1730663508288,3.26,161.02,160.96,7.64474626]
[1730663508988,3.1067,161.0,160.96,10.75204626]
[1730663510894,7.64474626,161.0,160.94,10.75244626]
[1730663511099,7.64474626,160.99,160.94,3.1077]
[1730663512397,7.64474626,160.98,160.92,10.75274626]
[1730663512809,3.26,160.97,160.92,10.75274626]
[1730663514197,3.1075,160.96,160.92,10.75274626]
[1730663515594,3.26,160.97,160.92,7.64474626]
[1730663515800,7.64474626,160.95,160.9,7.64474626]
[1730663516196,7.64474626,160.95,160.88,7.64474626]
[1730663516702,7.64474626,160.95,160.89,3.1086]
[1730663517499,3.1079,160.94,160.89,3.1086]
[1730663517704,3.1079,160.94,160.88,7.64474626]
[1730663517705,7.64474626,160.95,160.88,10.75364626]
[1730663518899,3.1082,160.93,160.88,10.75364626]
[1730663519504,3.1082,160.93,160.86,52.24947846]
[1730663519505,3.1079,160.94,160.9,7.64474626]
[1730663520399,3.1076,160.95,160.91,3.1083]
[1730663520700,3.1076,160.95,160.91,10.75304626]
[1730663521505,3.1076,160.95,160.91,7.64474626]
[1730663521706,7.64474626,160.95,160.89,7.64474626]
[1730663523108,7.64474626,160.94,160.88,7.64474626]
[1730663523407,3.1085,160.91,160.88,7.64474626]
[1730663524003,7.64474626,160.94,160.88,7.64474626]
[1730663524212,3.1082,160.92,160.88,7.64474626]
[1730663525709,3.1082,160.92,160.88,10.75364626]
[1730663530006,3.1082,160.92,160.89,7.64474626]
[1730663532014,3.1079,160.94,160.9,3.1085]
[1730663532206,3.26,160.94,160.89,7.64474626]
[1730663533421,3.108,160.93,160.89,10.75344626]
[1730663533621,7.64474626,160.9,160.86,52.24947846]
[1730663533916,3.26,160.94,160.81,7.64474626]
[1730663533917,7.64474626,160.87,160.81,7.64474626]
[1730663534112,3.26,160.89,160.78,3.96]
[1730663534113,10.90474626,160.86,160.8,7.64474626]
[1730663534423,10.75464626,160.84,160.78,10.75544626]
[1730663534815,7.64474626,160.84,160.78,10.75544626]
[1730663535020,3.11,160.83,160.78,10.75544626]
[1730663540923,7.64474626,160.84,160.78,10.75544626]
[1730663541230,3.1102,160.82,160.78,7.64474626]
[1730663542432,7.64474626,160.84,160.76,7.64474626]
[1730663543115,7.64474626,160.91,160.83,7.64474626]
[1730663543424,3.26,160.9,160.87,7.64474626]
[1730663543622,3.26,160.9,160.87,10.75384626]
[1730663544028,3.26,160.9,160.87,7.64474626]
[1730663544413,3.26,160.9,160.86,7.64474626]
[1730663544727,10.90474626,160.9,160.84,7.64474626]
[1730663545515,3.1091,160.88,160.84,7.64474626]
[1730663546127,7.64474626,160.87,160.81,7.64474626]
[1730663546334,7.64474626,160.86,160.79,7.64474626]
[1730663546631,3.1098,160.84,160.79,10.75524626]
[1730663547128,3.26,160.85,160.79,7.64474626]
[1730663547334,7.64474626,160.84,160.78,7.64474626]
[1730663547526,7.64474626,160.83,160.76,11.60704626]
[1730663547919,3.1103,160.81,160.76,11.60704626]
[1730663548125,3.26,160.8,160.76,11.60704626]
[1730663548621,3.26,160.8,160.76,14.71814626]
[1730663551834,3.26,160.8,160.79,10.75544626]
[1730663552017,3.1101,160.83,160.79,10.75544626]
[1730663552221,6.3701,160.83,160.79,10.75544626]
[1730663552428,6.3701,160.83,160.8,3.1104]
[1730663552934,3.26,160.83,160.81,7.64474626]
[1730663554735,3.26,160.83,160.8,3.1104]
[1730663555834,7.64474626,160.86,160.81,7.64474626]
[1730663556035,3.26,160.85,160.83,7.64474626]
[1730663556832,7.64474626,160.88,160.83,10.75464626]
[1730663557031,3.26,160.87,160.83,10.75464626]
[1730663558529,3.1091,160.88,160.83,7.64474626]
[1730663558733,7.64474626,160.92,160.86,7.64474626]
[1730663558927,3.26,160.91,160.87,7.64474626]
[1730663559124,3.26,160.91,160.85,7.64474626]
[1730663559335,3.1085,160.91,160.85,7.64474626]
[1730663559539,6.3685,160.91,160.87,7.64474626]
[1730663559832,3.26,160.91,160.87,7.64474626]
[1730663560939,3.26,160.91,160.88,3.1088]
[1730663563141,41.98858865,160.94,160.86,11.94211559]
[1730663563334,3.26,160.93,160.86,11.94211559]
[1730663563636,3.26,160.93,160.88,11.94211559]
[1730663564139,41.98858865,160.94,160.88,11.94211559]
[1730663564641,41.98858865,160.94,160.91,3.1083]
[1730663570629,45.09638865,160.94,160.91,3.1083]
[1730663571246,3.1081,160.93,160.89,3.1086]
[1730663571841,3.1081,160.93,160.9,3.1085]
[1730663572936,13.34311559,161.02,160.9,11.94211559]
[1730663573237,3.1073,160.97,160.93,3.1079]
[1730663573436,3.26,161.01,160.93,3.1079]
[1730663573637,3.107,160.98,160.92,3.1081]
[1730663573852,3.26,161.01,160.92,3.1081]
[1730663574348,3.1073,160.97,160.92,3.1081]
[1730663576941,3.1074,160.96,160.92,3.1081]
[1730663581351,3.1074,160.96,160.93,7.63875887]
[1730663585352,3.1076,160.95,160.93,7.63875887]
[1730663588046,3.24,160.96,160.93,7.63875887]
[1730663588245,3.24,160.96,160.87,52.24212477]
[1730663588453,7.63875887,160.95,160.89,7.63875887]
[1730663588950,7.63875887,160.93,160.87,52.24212477]
[1730663589255,7.63875887,160.93,160.86,7.63875887]
[1730663589459,7.63875887,160.91,160.85,7.63875887]
[1730663589644,10.87875887,160.9,160.83,7.63875887]
[1730663589848,7.63875887,160.88,160.82,7.63875887]
[1730663590145,7.63875887,160.86,160.8,7.63875887]
[1730663590343,3.24,160.85,160.8,7.63875887]
[1730663590554,10.87875887,160.85,160.79,7.63875887]
[1730663590962,7.63875887,160.82,160.75,9.19407044]
[1730663591256,7.63875887,160.82,160.75,7.63875887]
[1730663592258,3.24,160.81,160.8,7.63875887]
[1730663592558,3.24,160.82,160.8,7.63875887]
[1730663593353,3.24,160.82,160.77,15.06683423]
[1730663594769,3.24,160.82,160.78,3.1108]
[1730663599153,3.24,160.82,160.79,3.1107]
[1730663599564,3.24,160.82,160.77,11.95593423]
[1730663599866,3.24,160.82,160.78,3.1107]
[1730663600553,6.3501,160.82,160.78,3.1107]
[1730663602769,3.1101,160.82,160.78,3.1107]
[1730663602958,6.3501,160.82,160.78,3.1107]
[1730663603466,6.3501,160.82,160.76,3.1112]
[1730663603467,3.1105,160.8,160.76,3.1112]
[1730663604374,3.24,160.82,160.72,13.51153345]
[1730663604872,3.111,160.78,160.74,3.1116]
[1730663605061,3.24,160.77,160.74,3.1116]
[1730663605463,3.24,160.79,160.76,3.1113]
[1730663606071,3.1109,160.78,160.75,3.1114]
[1730663607265,3.1109,160.78,160.74,3.1116]
[1730663607466,3.1112,160.77,160.72,11.95593423]
[1730663607665,3.24,160.79,160.72,11.95593423]
[1730663607869,3.24,160.79,160.72,15.06793423]
[1730663608171,3.1114,160.76,160.72,15.06793423]
[1730663608869,3.1111,160.77,160.73,3.1117]
[1730663609471,3.1111,160.77,160.74,3.1116]
[1730663609771,3.24,160.79,160.7,1.3395]
[1730663609772,13.37253423,160.84,160.7,1.3395]
[1730663610074,3.24,160.83,160.74,11.95593423]
[1730663610465,3.1104,160.81,160.76,3.1112]
[1730663610665,3.24,160.83,160.76,3.1112]
[1730663611175,3.1103,160.81,160.76,3.1112]
[1730663613678,3.1101,160.83,160.74,11.95593423]
[1730663613977,3.24,160.82,160.76,11.95593423]
[1730663614478,3.24,160.84,160.78,11.95593423]
[1730663614778,41.06427271,160.85,160.78,11.95593423]
[1730663614967,3.24,160.86,160.79,1.3042]
[1730663615775,3.24,160.86,160.81,11.95593423]
[1730663616277,3.24,160.86,160.83,3.1098]
[1730663617475,3.1088,160.89,160.85,3.1095]
[1730663617682,3.24,160.9,160.85,11.95593423]
[1730663618282,3.24,160.9,160.87,3.109]
[1730663618583,4.0671,160.94,160.8,14.64433423]
[1730663618584,3.24,160.94,160.88,11.95593423]
[1730663618874,3.24,160.96,160.9,11.95593423]
[1730663619070,3.24,160.97,160.9,11.95593423]
[1730663619267,3.24,160.97,160.91,4.0717]
[1730663620175,3.24,160.97,160.94,3.1077]
[1730663620481,3.24,160.97,160.91,4.0717]
[1730663621077,3.24,160.97,160.93,3.1079]
[1730663622485,6.3472,160.97,160.93,3.1079]
[1730663626076,3.1072,160.97,160.93,3.1079]
[1730663627385,3.24,160.98,160.93,3.1079]
[1730663627386,6.3471,160.98,160.93,3.1079]
[1730663628175,3.1076,160.96,160.91,7.1799]
[1730663628375,3.24,160.98,160.91,4.0717]
[1730663629077,3.1072,160.97,160.92,3.108]
[1730663629388,3.24,160.98,160.91,4.0717]
[1730663629581,6.3472,160.98,160.93,3.1079]
[1730663630186,3.1072,160.97,160.93,3.1079]
[1730663632487,3.24,160.98,160.93,3.1079]
[1730663632488,6.3471,160.98,160.93,3.1079]
[1730663633188,3.1072,160.97,160.92,3.1081]
[1730663633379,3.24,160.98,160.92,3.1081]
[1730663634387,3.1074,160.96,160.92,3.1081]
[1730663636195,3.24,160.98,160.9,11.95593423]
[1730663636387,3.1077,160.95,160.88,11.95593423]
[1730663636694,3.24,160.98,160.88,11.95593423]
[1730663636897,3.1075,160.96,160.91,3.1082]
[1730663637694,3.1076,160.95,160.91,3.1082]
[1730663638189,3.1076,160.95,160.88,11.95593423]
[1730663638392,3.1073,160.97,160.9,11.95593423]
[1730663639383,3.24,160.98,160.93,7.63850446]
[1730663639585,6.347,160.98,160.93,7.63850446]
[1730663639985,6.347,160.98,160.94,3.1078]
[1730663640486,6.347,160.98,160.93,7.63850446]
[1730663640786,3.24,160.98,160.95,7.63850446]
[1730663643989,6.3471,160.98,160.95,7.63850446]
[1730663653908,3.1074,160.96,160.93,7.63850446]
[1730663654695,3.1073,160.97,160.93,7.63850446]
[1730663654896,3.1073,160.97,160.93,10.74650446]
[1730663657193,3.1074,160.96,160.93,7.63850446]
[1730663657405,10.87850446,160.98,160.92,7.63850446]
[1730663657599,10.87850446,160.98,160.87,7.2786]
[1730663657600,7.63850446,160.96,160.9,7.63850446]
[1730663657800,3.1082,160.92,160.88,10.74740446]
[1730663658413,3.24,160.93,160.88,10.74740446]
[1730663658702,3.24,160.93,160.88,7.63850446]
[1730663658703,10.87850446,160.93,160.88,7.63850446]
[1730663658911,10.87850446,160.93,160.87,7.63850446]
[1730663659107,3.1085,160.91,160.87,7.63850446]
[1730663659302,3.1085,160.91,160.86,51.4682744]
[1730663659303,3.1085,160.91,160.88,7.63850446]
[1730663661304,10.87850446,160.93,160.88,7.63850446]
[1730663661508,3.1085,160.91,160.87,7.63850446]
[1730663662409,3.1085,160.91,160.87,10.74760446]
[1730663665912,3.24,160.93,160.9,10.74690446]
[1730663666110,3.1078,160.94,160.9,7.63850446]
[1730663666305,3.22,160.93,160.9,7.63850446]
[1730663667011,3.22,160.93,160.9,10.74690446]
[1730663672817,3.1075,160.96,160.92,10.74670446]
[1730663673024,3.22,160.96,160.95,7.63850446]